bitfinex/quotes_BTCUSD_20250102
["timestamp","ask_amount","ask_price","bid_price","bid_amount"]
[1735812039634,0.39112032,96883.0,96882.0,0.00021988]
[1735812039834,0.43662032,96883.0,96882.0,0.00021988]
[1735812040421,0.52170582,96883.0,96882.0,0.00021988]
[1735812040623,0.43662032,96883.0,96882.0,0.00021988]
[1735812041050,0.44062032,96883.0,96882.0,0.00021988]
[1735812041206,0.43662032,96883.0,96882.0,0.00021988]
[1735812041660,0.46180259,96883.0,96882.0,0.00121988]
[1735812041856,0.46180259,96883.0,96882.0,0.00021988]
[1735812042060,0.56578891,96883.0,96882.0,0.00021988]
[1735812042299,0.46680259,96883.0,96882.0,0.00021988]
[1735812042736,0.46180259,96883.0,96882.0,0.00021988]
[1735812043129,0.46580259,96883.0,96882.0,0.00021988]
[1735812043331,0.62598759,96883.0,96882.0,0.00021988]
[1735812043482,0.58722314,96883.0,96882.0,0.00021988]
[1735812043850,0.69720946,96883.0,96882.0,0.00121988]
[1735812044063,0.70120946,96883.0,96882.0,0.00121988]
[1735812044474,0.59722314,96883.0,96882.0,0.00121988]
[1735812044811,0.66903914,96883.0,96882.0,0.00121988]
[1735812045015,0.66503914,96883.0,96882.0,0.00121988]
[1735812045218,0.65403914,96883.0,96882.0,0.00021988]
[1735812045514,0.65803914,96883.0,96882.0,0.00021988]
[1735812045715,0.85453163,96883.0,96882.0,0.00021988]
[1735812045926,0.85053163,96883.0,96882.0,0.00021988]
[1735812046153,0.75054531,96883.0,96882.0,0.00021988]
[1735812046370,0.206483,96860.0,96842.0,0.000171]
[1735812046546,0.206483,96860.0,96859.0,0.00022012]
[1735812046547,0.18178632,96860.0,96859.0,0.00022012]
[1735812047026,0.19796991,96860.0,96859.0,0.00022012]
[1735812047228,0.00277781,96889.0,96859.0,0.00022012]
[1735812047527,0.206479,96862.0,96859.0,0.00022012]
[1735812047727,0.206483,96860.0,96859.0,0.00022012]
[1735812047967,0.36066932,96860.0,96859.0,0.00122012]
[1735812048178,0.36066932,96860.0,96859.0,0.00022012]
[1735812048597,0.36066932,96860.0,96859.0,0.00122012]
[1735812049045,0.36066932,96860.0,96859.0,0.00022012]
[1735812049791,0.39469932,96860.0,96859.0,0.00022012]
[1735812049994,0.54823281,96860.0,96859.0,0.00022012]
[1735812050197,0.62603281,96860.0,96859.0,0.00022012]
[1735812051035,0.62193132,96860.0,96859.0,0.00022012]
[1735812051235,0.69692632,96860.0,96859.0,0.00022012]
[1735812051656,0.72803876,96860.0,96859.0,0.00022012]
[1735812052066,0.46958176,96860.0,96859.0,0.00022012]
[1735812053046,0.4857663,96860.0,96859.0,0.00022012]
[1735812054278,0.4897663,96860.0,96859.0,0.00022012]
[1735812054722,0.4927663,96860.0,96859.0,0.00022012]
[1735812055579,0.206511,96848.0,96842.0,0.000171]
[1735812055783,0.206511,96848.0,96842.0,0.00022019]
[1735812056170,0.01618589,96847.0,96842.0,0.00022019]
[1735812056391,0.31049932,96846.0,96842.0,0.00022019]
[1735812056851,0.206515,96845.0,96842.0,0.00022019]
[1735812057058,0.206519,96843.0,96842.0,0.00022019]
[1735812057254,0.31050532,96843.0,96842.0,0.00022019]
[1735812058422,0.32097073,96843.0,96842.0,0.00022019]
[1735812058628,0.32097073,96843.0,96842.0,0.00122019]
[1735812059567,0.34210095,96843.0,96842.0,0.00022019]
[1735812059767,0.34210095,96843.0,96842.0,0.00322019]
[1735812060480,0.03159563,96843.0,96842.0,0.00022019]
[1735812060854,0.02113022,96843.0,96842.0,0.00022019]
[1735812061159,0.28714714,96843.0,96842.0,0.00022019]
[1735812061380,0.28514714,96843.0,96842.0,0.00022019]
[1735812061663,0.25141654,96843.0,96842.0,0.00022019]
[1735812061906,0.25241654,96843.0,96842.0,0.00022019]
[1735812062082,0.26241654,96843.0,96842.0,0.00022019]
[1735812062280,0.13611654,96843.0,96842.0,0.00022019]
[1735812062888,0.012,96843.0,96842.0,0.10022019]
[1735812063088,0.0271854,96843.0,96842.0,0.10022019]
[1735812063316,0.011,96843.0,96842.0,0.10022019]
[1735812063623,0.02818467,96843.0,96842.0,0.10022019]
[1735812063946,0.02718467,96843.0,96842.0,0.10422019]
[1735812064206,0.02618467,96843.0,96842.0,0.10022019]
[1735812064418,0.02718467,96843.0,96842.0,0.10022019]
[1735812064646,0.02718467,96843.0,96842.0,0.10322019]
[1735812064846,0.02618467,96843.0,96842.0,0.10022019]
[1735812065638,0.02618467,96843.0,96842.0,0.10522019]
[1735812066269,0.02718467,96843.0,96842.0,0.10922019]
[1735812066447,0.02718467,96843.0,96842.0,0.10522019]
[1735812066849,0.02818467,96843.0,96842.0,0.10922019]
[1735812067049,0.012,96843.0,96842.0,0.10422019]
[1735812067454,0.013,96843.0,96842.0,0.10922019]
[1735812067855,0.012,96843.0,96842.0,0.10422019]
[1735812068056,0.01,96843.0,96842.0,0.10022019]
[1735812068420,0.011,96843.0,96842.0,0.10522019]
[1735812068836,0.01,96843.0,96842.0,0.37940651]
[1735812069025,0.011,96843.0,96842.0,0.38540651]
[1735812069428,0.012,96843.0,96842.0,0.38940651]
[1735812069845,0.011,96843.0,96842.0,0.40012704]
[1735812070047,1e-06,96843.0,96842.0,0.45142704]
[1735812070281,0.01042382,96883.0,96882.0,0.206436]
[1735812070529,8.55e-05,96883.0,96882.0,0.206436]
[1735812071544,8.55e-05,96883.0,96882.0,4.919e-05]
[1735812071702,0.01626421,96883.0,96882.0,4.919e-05]
[1735812071961,0.01626421,96883.0,96882.0,0.21048519]
[1735812072761,0.01626421,96883.0,96882.0,0.21548519]
[1735812073146,0.01626421,96883.0,96882.0,0.21048519]
[1735812073339,0.01626421,96883.0,96882.0,0.21948519]
[1735812073703,0.01626421,96883.0,96882.0,0.21548519]
[1735812074098,0.01626421,96883.0,96882.0,0.31948519]
[1735812074609,0.01626421,96883.0,96882.0,0.31548519]
[1735812074797,0.01626421,96883.0,96882.0,0.00904919]
[1735812074997,0.13596601,96883.0,96882.0,0.004]
[1735812075376,0.12025053,96883.0,96882.0,0.004]
[1735812075511,0.20335053,96883.0,96882.0,0.004]
[1735812075712,1.02061653,96883.0,96882.0,0.004]
[1735812075963,1.05961653,96883.0,96882.0,0.004]
[1735812076163,0.85358553,96883.0,96882.0,0.004]
[1735812076328,0.20648,96862.0,96854.0,0.1]
[1735812076533,0.206483,96860.0,96854.0,4.92e-05]
[1735812076731,0.18708632,96861.0,96854.0,4.92e-05]
[1735812077165,0.206485,96859.0,96854.0,4.92e-05]
[1735812077370,0.412978,96857.0,96854.0,4.92e-05]
[1735812077552,0.10398632,96856.0,96854.0,4.92e-05]
[1735812077746,0.02110903,96855.0,96854.0,4.92e-05]
[1735812077946,0.33158935,96855.0,96854.0,4.92e-05]
[1735812078164,0.39841719,96855.0,96854.0,4.92e-05]
[1735812078517,0.62634719,96855.0,96854.0,0.0010492]
[1735812078935,0.62634719,96855.0,96854.0,0.0050492]
[1735812079109,0.62634719,96855.0,96854.0,0.0010492]
[1735812079346,0.55951935,96855.0,96854.0,0.0010492]
[1735812079534,0.33858935,96855.0,96854.0,0.0010492]
[1735812079684,0.33858935,96855.0,96854.0,4.92e-05]
[1735812079885,0.33858935,96855.0,96854.0,0.0030492]
[1735812080505,0.49978935,96855.0,96854.0,4.92e-05]
[1735812080728,0.50278935,96855.0,96854.0,4.92e-05]
[1735812080936,0.34158935,96855.0,96854.0,4.92e-05]
[1735812082143,0.02410903,96855.0,96854.0,4.92e-05]
[1735812082420,0.32386613,96855.0,96854.0,4.92e-05]
[1735812082550,0.32386613,96855.0,96842.0,0.000171]
[1735812082551,0.43085245,96855.0,96842.0,0.000171]
[1735812082751,0.206507,96849.0,96842.0,0.00022723]
[1735812083039,0.31049332,96849.0,96842.0,0.00022723]
[1735812083696,0.10398632,96848.0,96842.0,0.00022723]
[1735812083887,0.289412,96847.0,96842.0,0.00022723]
[1735812084091,0.206515,96845.0,96842.0,0.00022723]
[1735812084300,0.206519,96843.0,96842.0,0.00022723]
[1735812084509,0.31050532,96843.0,96842.0,0.00022723]
[1735812085667,0.10398632,96843.0,96842.0,0.00022723]
[1735812085861,0.12017304,96843.0,96842.0,0.00022723]
[1735812086073,0.33736376,96843.0,96842.0,0.00022723]
[1735812086438,0.33936376,96843.0,96842.0,0.00022723]
[1735812086848,0.33936376,96843.0,96842.0,0.00122723]
[1735812087308,0.32317704,96843.0,96842.0,0.00022723]
[1735812087511,0.002,96843.0,96842.0,0.00022723]
[1735812088320,0.10398632,96843.0,96842.0,0.00022723]
[1735812088537,0.10498632,96843.0,96842.0,0.00022723]
[1735812088735,0.17788958,96843.0,96842.0,0.00022723]
[1735812088959,0.10498632,96843.0,96842.0,0.00022723]
[1735812089580,0.10398632,96843.0,96842.0,0.00022723]
[1735812089805,0.10498632,96843.0,96842.0,0.00022723]
[1735812090417,0.10398632,96843.0,96842.0,0.00022723]
[1735812090802,0.24308752,96843.0,96842.0,0.00022723]
[1735812090981,0.31633693,96843.0,96842.0,0.00022723]
[1735812091815,0.62295645,96843.0,96842.0,0.00022723]
[1735812092056,0.62495645,96843.0,96842.0,0.00022723]
[1735812092295,0.63395645,96843.0,96842.0,0.00022723]
[1735812092861,0.63295645,96843.0,96842.0,0.00022723]
[1735812093059,0.64914423,96843.0,96842.0,0.00022723]
[1735812093273,0.65414423,96843.0,96842.0,0.00022723]
[1735812093642,0.65314423,96843.0,96842.0,1.391e-05]
[1735812094055,1.37120523,96843.0,96842.0,1.391e-05]
[1735812094517,1.36620523,96843.0,96842.0,1.391e-05]
[1735812094695,1.37020523,96843.0,96842.0,1.391e-05]
[1735812094893,1.36620523,96843.0,96842.0,1.391e-05]
[1735812095294,1.37020523,96843.0,96842.0,1.391e-05]
[1735812095540,1.37020523,96843.0,96817.0,0.09731592]
[1735812095755,0.10398632,96836.0,96817.0,0.09780805]
[1735812095963,0.206561,96824.0,96817.0,0.00049213]
[1735812096176,0.10398632,96823.0,96817.0,0.00049213]
[1735812096386,0.10398632,96823.0,96817.0,0.09780805]
[1735812096594,0.01618974,96823.0,96817.0,0.09780805]
[1735812096807,0.206536,96835.0,96817.0,0.09780805]
[1735812097015,0.206541,96833.0,96817.0,0.00049213]
[1735812097165,0.10398632,96834.0,96817.0,0.09780805]
[1735812097166,0.206555,96827.0,96817.0,0.09780805]
[1735812097373,0.09268879,96822.0,96817.0,0.09780805]
[1735812097729,0.206571,96819.0,96817.0,0.00249213]
[1735812097935,0.10398632,96818.0,96817.0,0.00249213]
[1735812098781,0.10290813,96822.0,96817.0,0.00249213]
[1735812098782,0.09268879,96821.0,96817.0,0.00249213]
[1735812098985,0.19667511,96821.0,96817.0,0.00049213]
[1735812099397,0.19667511,96821.0,96817.0,0.00249213]
[1735812099803,0.01021934,96822.0,96821.0,0.19731592]
[1735812099960,0.09268879,96824.0,96821.0,0.19731592]
[1735812100158,0.09268879,96824.0,96823.0,0.19731592]
[1735812100920,0.010576,96831.0,96824.0,0.41312]
[1735812101150,0.010576,96831.0,96824.0,0.20656]
[1735812101350,0.09268879,96832.0,96826.0,0.099]
[1735812101787,0.09268879,96832.0,96829.0,0.09731592]
[1735812101895,0.09268879,96832.0,96829.0,0.09631592]
[1735812102339,0.10321414,96832.0,96829.0,0.09631592]
[1735812102560,0.01152535,96832.0,96829.0,0.09631592]
[1735812103368,0.01152535,96832.0,96824.0,0.09631592]
[1735812103574,0.01152535,96832.0,96829.0,0.09631592]
[1735812103780,0.09268879,96835.0,96829.0,0.09631592]
[1735812103984,0.09268879,96838.0,96830.0,0.206547]
[1735812104264,0.09268879,96838.0,96830.0,0.30286292]
[1735812105553,0.02108067,96839.0,96832.0,0.206543]
[1735812105790,0.01955335,96843.0,96838.0,0.206529]
[1735812105981,0.01955335,96843.0,96842.0,0.19531592]
[1735812106185,0.009,96843.0,96842.0,0.19531592]
[1735812107279,8.55e-05,96846.0,96842.0,0.30130224]
[1735812107494,0.09268879,96855.0,96854.0,0.50171456]
[1735812107700,0.12185589,96860.0,96859.0,0.39421856]
[1735812107907,0.05741189,96860.0,96859.0,0.49820488]
[1735812108314,8.55e-05,96883.0,96863.0,0.39421856]
[1735812108315,0.09257062,96864.0,96863.0,0.39421856]
[1735812108516,0.02188251,96869.0,96868.0,0.39421856]
[1735812108723,0.21231249,96872.0,96871.0,0.39421856]
[1735812108924,0.13752879,96872.0,96871.0,0.65686696]
[1735812109130,0.50291188,96921.0,96903.0,0.50060956]
[1735812109339,0.50291188,96921.0,96903.0,0.70459588]
[1735812109788,0.50291188,96921.0,96903.0,0.73752933]
[1735812110009,0.0808,96948.0,96912.0,0.40059056]
[1735812110222,0.0808,96948.0,96912.0,0.50457688]
[1735812110430,0.0808,96948.0,96912.0,0.60463313]
[1735812110847,0.01625621,96913.0,96912.0,0.50463313]
[1735812111483,0.01625621,96913.0,96912.0,0.40064681]
[1735812111933,0.01725621,96913.0,96912.0,0.40564681]
[1735812112144,0.01825621,96913.0,96912.0,0.41064681]
[1735812112492,0.01725621,96913.0,96912.0,0.19927481]
[1735812112707,0.01625621,96913.0,96912.0,0.40064681]
[1735812112875,0.01725621,96913.0,96912.0,0.10027481]
[1735812113079,0.01825621,96913.0,96912.0,0.01005625]
[1735812113279,0.09545621,96913.0,96912.0,0.00505625]
[1735812113714,0.09645621,96913.0,96912.0,0.10527481]
[1735812113916,0.09645621,96913.0,96912.0,0.01005625]
[1735812114287,0.09640369,96913.0,96912.0,0.01005625]
[1735812114468,0.20039001,96913.0,96912.0,0.01005625]
[1735812114833,0.24739001,96913.0,96912.0,5.625e-05]
[1735812115029,0.24839001,96913.0,96912.0,0.00905625]
[1735812115267,0.24839001,96913.0,96886.0,0.09521856]
[1735812115268,0.206408,96896.0,96886.0,0.09521856]
[1735812115484,0.206411,96894.0,96886.0,6.142e-05]
[1735812115718,0.206401,96899.0,96886.0,6.142e-05]
[1735812115719,0.206424,96888.0,96886.0,6.142e-05]
[1735812116158,0.10398632,96887.0,96886.0,6.142e-05]
[1735812116517,0.23618632,96887.0,96886.0,6.142e-05]
[1735812117019,0.24629901,96887.0,96886.0,6.142e-05]
[1735812118646,0.24118632,96887.0,96886.0,0.00106142]
[1735812118842,0.23618632,96887.0,96886.0,0.00106142]
[1735812119058,0.1322,96887.0,96886.0,6.142e-05]
[1735812119229,0.004,96887.0,96886.0,0.19427998]
[1735812119485,0.004,96887.0,96886.0,6.142e-05]
[1735812119745,0.254492,96903.0,96886.0,6.142e-05]
[1735812119972,0.008,96887.0,96886.0,6.142e-05]
[1735812120175,0.11398632,96887.0,96886.0,6.142e-05]
[1735812121099,0.10598632,96887.0,96886.0,6.142e-05]
[1735812121303,0.10407182,96887.0,96886.0,6.142e-05]
[1735812121525,0.10407182,96887.0,96886.0,0.00106142]
[1735812121780,0.12025184,96887.0,96886.0,0.00106142]
[1735812121976,0.01626552,96887.0,96886.0,0.00106142]
[1735812122105,0.01626552,96887.0,96886.0,6.142e-05]
[1735812122317,0.01726552,96887.0,96886.0,6.142e-05]
[1735812122767,0.01626552,96887.0,96886.0,6.142e-05]
[1735812122970,0.01726552,96887.0,96886.0,6.142e-05]
[1735812123153,0.01726552,96887.0,96886.0,0.00106142]
[1735812124222,0.01726552,96887.0,96886.0,6.142e-05]
[1735812124439,0.01726552,96887.0,96886.0,0.09906142]
[1735812124642,0.01626552,96887.0,96886.0,0.10106142]
[1735812124841,0.01626552,96887.0,96886.0,0.00206142]
[1735812125277,0.12025184,96887.0,96886.0,0.00206142]
[1735812125478,0.17356112,96887.0,96886.0,0.00206142]
[1735812125848,0.17456112,96887.0,96886.0,6.142e-05]
[1735812126069,0.12025184,96887.0,96886.0,0.00206142]
[1735812126247,0.14117081,96887.0,96886.0,0.00206142]
[1735812126602,0.12499079,96887.0,96886.0,0.00206142]
[1735812127403,0.12499079,96887.0,96886.0,6.142e-05]
[1735812127842,0.17316313,96887.0,96886.0,6.142e-05]
[1735812128055,0.29786313,96887.0,96886.0,6.142e-05]
[1735812128260,0.29486313,96887.0,96886.0,6.142e-05]
[1735812128501,0.24769079,96887.0,96886.0,6.142e-05]
[1735812128692,0.25069079,96887.0,96886.0,6.142e-05]
[1735812128919,0.24869079,96887.0,96886.0,6.142e-05]
[1735812129098,0.37207379,96887.0,96886.0,6.142e-05]
[1735812129274,0.36380879,96887.0,96886.0,6.142e-05]
[1735812129478,0.36280879,96887.0,96886.0,6.142e-05]
[1735812129657,0.24769079,96887.0,96886.0,6.142e-05]
[1735812129848,0.24969079,96887.0,96886.0,6.142e-05]
[1735812130095,0.42476879,96887.0,96886.0,6.142e-05]
[1735812130307,0.206474,96865.0,96857.0,0.099]
[1735812130515,0.206474,96865.0,96857.0,0.09949245]
[1735812130980,0.206484,96860.0,96857.0,0.00049245]
[1735812131123,0.206487,96858.0,96857.0,0.00049245]
[1735812131530,0.0824,96859.0,96857.0,0.00049245]
[1735812131777,0.35687332,96858.0,96857.0,0.00049245]
[1735812131949,0.35687332,96858.0,96857.0,0.00249245]
[1735812132467,0.35687332,96858.0,96857.0,0.00049245]
[1735812132682,0.37907593,96858.0,96857.0,0.00049245]
[1735812132831,0.37807593,96858.0,96857.0,0.00049245]
[1735812133942,0.37807593,96858.0,96857.0,0.00249245]
[1735812134145,0.37907593,96858.0,96857.0,0.00266325]
[1735812134350,0.37907593,96858.0,96857.0,0.00066325]
[1735812134729,0.17258893,96858.0,96857.0,0.00066325]
[1735812134928,0.17658893,96858.0,96857.0,0.00066325]
[1735812135131,0.17158893,96858.0,96857.0,0.00066325]
[1735812135340,0.37907593,96858.0,96857.0,0.00066325]
[1735812135514,0.38307593,96858.0,96857.0,0.00066325]
[1735812135710,0.37907593,96858.0,96857.0,0.00066325]
[1735812135915,0.38307593,96858.0,96857.0,0.00066325]
[1735812136913,0.38207593,96858.0,96857.0,0.00066325]
[1735812137114,0.39826163,96858.0,96857.0,0.00066325]
[1735812137320,0.37907593,96858.0,96857.0,0.00066325]
[1735812137767,0.38207593,96858.0,96857.0,0.00066325]
[1735812137973,0.37807593,96858.0,96857.0,0.00066325]
[1735812138179,0.47184012,96858.0,96857.0,0.00066325]
[1735812138620,0.38307593,96858.0,96857.0,0.00066325]
[1735812139019,0.37907593,96858.0,96857.0,0.00066325]
[1735812139674,0.38307593,96858.0,96857.0,0.00066325]
[1735812140057,0.38207593,96858.0,96857.0,0.00066325]
[1735812140277,0.38407593,96858.0,96857.0,0.00066325]
[1735812140868,0.37807593,96858.0,96857.0,0.00056156]
[1735812141068,0.38007593,96858.0,96857.0,0.00056156]
[1735812141274,0.38507593,96858.0,96857.0,0.00056156]
[1735812141694,0.38007593,96858.0,96857.0,0.00056156]
[1735812142096,0.38207593,96858.0,96857.0,0.00056156]
[1735812142699,0.38707593,96858.0,96857.0,0.00056156]
[1735812143104,0.07660261,96858.0,96857.0,0.00056156]
[1735812143303,0.0927882,96858.0,96857.0,0.00056156]
[1735812143520,0.0947882,96858.0,96857.0,0.00056156]
[1735812143948,0.0927882,96858.0,96857.0,0.00056156]
[1735812144135,0.0837882,96858.0,96857.0,0.00056156]
[1735812144351,0.0897882,96858.0,96857.0,0.00056156]
[1735812144709,0.0877882,96858.0,96857.0,0.00056156]
[1735812144982,0.19177452,96858.0,96857.0,0.00056156]
[1735812145198,0.26350857,96858.0,96857.0,0.00056156]
[1735812146018,0.19377452,96858.0,96857.0,0.00030221]
[1735812146223,0.17767433,96858.0,96857.0,0.00030221]
[1735812146423,0.17567433,96858.0,96857.0,0.00030221]
[1735812146787,0.17767433,96858.0,96857.0,0.00030221]
[1735812147414,0.17367433,96858.0,96857.0,0.00030221]
[1735812147618,0.17767433,96858.0,96857.0,0.00030221]
[1735812147827,0.24609836,96858.0,96857.0,0.00030221]
[1735812147997,0.17867433,96858.0,96857.0,0.00030221]
[1735812148200,0.206528,96839.0,96838.0,0.000171]
[1735812148395,0.31051432,96839.0,96838.0,0.000171]
[1735812149744,0.31051432,96839.0,96838.0,0.002171]
[1735812150751,0.31151432,96839.0,96838.0,0.000171]
[1735812151343,0.32670162,96839.0,96838.0,0.000171]
[1735812153097,0.33723029,96839.0,96838.0,0.000171]
[1735812153245,0.35835677,96839.0,96838.0,0.000171]
[1735812153672,0.35935677,96839.0,96838.0,0.000171]
[1735812153835,0.36135677,96839.0,96838.0,0.000171]
[1735812155400,0.43975677,96839.0,96838.0,0.000171]
[1735812158165,0.42356947,96839.0,96838.0,0.000171]
[1735812159222,0.42256947,96839.0,96838.0,0.000171]
[1735812159655,0.42156947,96839.0,96838.0,0.000171]
[1735812160071,0.42256947,96839.0,96838.0,0.000171]
[1735812160274,0.42056947,96839.0,96838.0,0.000171]
[1735812160679,0.42156947,96839.0,96838.0,0.000171]
[1735812161656,0.42056947,96839.0,96838.0,0.000171]
[1735812162866,0.43675677,96839.0,96838.0,0.000171]
[1735812163067,0.48715677,96839.0,96838.0,0.000171]
[1735812163215,0.49193821,96839.0,96815.0,0.099]
[1735812163379,0.206562,96823.0,96815.0,0.099]
[1735812164042,0.01618852,96822.0,96816.0,0.099]
[1735812164242,0.01618852,96822.0,96821.0,0.099]
[1735812164599,0.01618852,96822.0,96821.0,0.09907079]
[1735812166050,0.01618852,96822.0,96821.0,0.10307079]
[1735812166255,0.01718852,96822.0,96821.0,0.10307079]
[1735812166428,0.01618852,96822.0,96821.0,0.10307079]
[1735812166848,0.01718852,96822.0,96821.0,0.30963679]
[1735812167046,0.01718852,96822.0,96821.0,0.40485535]
[1735812167784,0.001,96822.0,96821.0,0.40485535]
[1735812168363,0.001,96822.0,96821.0,0.39485535]
[1735812171797,0.001,96822.0,96821.0,0.39085535]
[1735812172249,0.001,96822.0,96821.0,0.39485535]
[1735812172454,0.01718762,96822.0,96821.0,0.39485535]
[1735812172590,0.01718762,96822.0,96821.0,0.39085535]
[1735812172785,0.01718762,96822.0,96821.0,0.18428935]
[1735812173023,0.03691382,96822.0,96821.0,0.09307079]
[1735812173425,0.03791382,96822.0,96821.0,0.09907079]
[1735812173621,0.03691382,96822.0,96821.0,0.09307079]
[1735812174037,0.03791382,96822.0,96821.0,0.09907079]
[1735812174221,0.03791382,96822.0,96821.0,0.09507079]
[1735812174629,0.03791382,96822.0,96821.0,0.09807079]
[1735812175111,0.03791382,96822.0,96821.0,0.09507079]
[1735812175484,0.04849759,96822.0,96821.0,0.09807079]
[1735812176691,0.07524949,96822.0,96821.0,0.09807079]
[1735812176894,0.04849759,96822.0,96821.0,0.09807079]
[1735812177101,0.15248391,96822.0,96821.0,0.00907079]
[1735812177506,0.13629629,96822.0,96821.0,0.00907079]
[1735812179366,0.13629629,96822.0,96821.0,0.00607079]
[1735812179924,0.13529629,96822.0,96821.0,7.079e-05]
[1735812180309,0.13629629,96822.0,96821.0,0.00507079]
[1735812180513,0.13629629,96822.0,96821.0,7.079e-05]
[1735812180705,0.13629629,96822.0,96821.0,0.00307079]
[1735812180912,0.13629629,96822.0,96821.0,0.00607079]
[1735812181095,0.03130997,96822.0,96821.0,0.00307079]
[1735812181291,0.0207262,96822.0,96821.0,7.079e-05]
[1735812181502,0.35768405,96826.0,96821.0,0.09207079]
[1735812181708,0.28684,96826.0,96825.0,0.089]
[1735812182112,0.30302768,96826.0,96825.0,0.089]
[1735812182474,0.28684,96826.0,96825.0,0.089]
[1735812182679,0.01055595,96826.0,96825.0,0.18421856]
[1735812183084,0.27628405,96834.0,96833.0,0.089]
[1735812183237,0.28664354,96834.0,96833.0,0.089]
[1735812183440,0.28664354,96834.0,96833.0,0.295541]
[1735812183624,0.01035949,96834.0,96833.0,0.295541]
[1735812183823,0.13942829,96835.0,96833.0,0.295541]
[1735812184231,0.13942829,96835.0,96833.0,0.089]
[1735812184432,0.03116934,96838.0,96825.0,0.09521856]
[1735812184833,0.03116934,96838.0,96830.0,0.206547]
[1735812185036,8.54e-05,96838.0,96837.0,0.09521856]
[1735812185761,0.01627046,96838.0,96837.0,0.09521856]
[1735812186143,0.01627046,96838.0,96837.0,0.20020488]
[1735812186754,0.01727046,96838.0,96837.0,0.20620488]
[1735812187270,0.01727046,96838.0,96837.0,0.20020488]
[1735812187474,0.01827046,96838.0,96837.0,0.20820488]
[1735812187669,0.01627046,96838.0,96837.0,0.19920488]
[1735812188056,0.01727046,96838.0,96837.0,0.21120488]
[1735812188333,0.0010854,96838.0,96837.0,0.21120488]
[1735812188671,0.0010854,96838.0,96837.0,0.20720488]
[1735812188871,0.0010854,96838.0,96837.0,0.21120488]
[1735812189370,8.54e-05,96838.0,96837.0,0.20320488]
[1735812189504,0.0010854,96838.0,96837.0,0.20520488]
[1735812189703,0.0010854,96838.0,96837.0,0.20920488]
[1735812189974,8.54e-05,96838.0,96837.0,0.20320488]
[1735812190179,8.54e-05,96838.0,96837.0,0.20920488]
[1735812190380,0.0010854,96838.0,96837.0,0.20920488]
[1735812191912,0.0010854,96838.0,96837.0,0.20520488]
[1735812192110,0.0010854,96838.0,96837.0,0.21020488]
[1735812192393,8.54e-05,96838.0,96837.0,0.20420488]
[1735812192527,0.0010854,96838.0,96837.0,0.21020488]
[1735812192726,0.01727024,96838.0,96837.0,0.21020488]
[1735812196107,0.01727024,96838.0,96837.0,0.31020488]
[1735812196311,0.01727024,96838.0,96837.0,0.41020488]
[1735812196692,0.0010854,96838.0,96837.0,0.41020488]
[1735812197261,0.0010854,96838.0,96837.0,0.31020488]
[1735812197412,8.54e-05,96838.0,96837.0,0.40420488]
[1735812197590,8.54e-05,96838.0,96837.0,0.41020488]
[1735812197815,8.54e-05,96838.0,96837.0,0.40520488]
[1735812197816,0.0010854,96838.0,96837.0,0.40520488]
[1735812198205,0.0010854,96838.0,96837.0,0.30920488]
[1735812198401,4e-07,96838.0,96837.0,0.40920488]
[1735812198602,4e-07,96838.0,96837.0,0.40520488]
[1735812199008,0.001,96838.0,96837.0,0.40620488]
[1735812199530,0.01050039,96877.0,96856.0,0.40171056]
[1735812199706,0.01050039,96877.0,96856.0,0.50569688]
[1735812200902,0.01050039,96877.0,96856.0,0.50576767]
[1735812202270,0.0010854,96857.0,96856.0,0.51976767]
[1735812203170,4e-07,96857.0,96856.0,0.61976767]
[1735812203502,8.55e-05,96887.0,96857.0,0.29521856]
[1735812203710,8.55e-05,96887.0,96857.0,0.39920488]
[1735812204113,4e-07,96858.0,96857.0,0.39920488]
[1735812204313,8.55e-05,96887.0,96886.0,0.30164656]
[1735812204527,8.55e-05,96887.0,96886.0,0.40563288]
[1735812205513,8.55e-05,96887.0,96886.0,0.40570367]
[1735812205723,8.55e-05,96887.0,96886.0,0.40870367]
[1735812206103,8.55e-05,96887.0,96886.0,0.31271735]
[1735812206515,8.55e-05,96887.0,96886.0,0.41670367]
[1735812206892,8.55e-05,96887.0,96886.0,0.40870367]
[1735812207102,0.01626213,96887.0,96886.0,0.40970367]
[1735812207460,0.01626213,96887.0,96886.0,0.41070367]
[1735812208130,0.01626213,96887.0,96886.0,0.40970367]
[1735812208344,0.01626213,96887.0,96886.0,0.40870367]
[1735812208545,8.55e-05,96887.0,96886.0,0.40870367]
[1735812208755,8.55e-05,96887.0,96886.0,0.41270367]
[1735812208951,8.55e-05,96887.0,96886.0,0.40570367]
[1735812209359,0.1278855,96887.0,96886.0,0.10228935]
[1735812209577,0.1278855,96887.0,96886.0,0.00707079]
[1735812210186,0.1278855,96887.0,96886.0,7.079e-05]
[1735812210385,0.1278855,96887.0,96886.0,0.01007079]
[1735812210763,0.1278855,96887.0,96886.0,0.00707079]
[1735812211725,0.1278855,96887.0,96886.0,7.079e-05]
[1735812211945,0.1288855,96887.0,96886.0,7.079e-05]
[1735812214165,0.1278855,96887.0,96886.0,7.079e-05]
[1735812214416,0.1288855,96887.0,96886.0,7.079e-05]
[1735812214885,0.1278855,96887.0,96886.0,7.079e-05]
[1735812215331,0.3343115,96887.0,96886.0,7.079e-05]
[1735812216527,0.43829782,96887.0,96886.0,7.079e-05]
[1735812216931,0.45447701,96887.0,96886.0,7.079e-05]
[1735812218637,0.45547701,96887.0,96886.0,7.079e-05]
[1735812218808,0.43929782,96887.0,96886.0,7.079e-05]
[1735812220292,0.1278855,96887.0,96886.0,7.079e-05]
[1735812220743,0.1288855,96887.0,96886.0,7.079e-05]
[1735812220939,0.23287182,96887.0,96886.0,7.079e-05]
[1735812221770,0.23187182,96887.0,96886.0,7.079e-05]
[1735812222143,0.23287182,96887.0,96886.0,7.079e-05]
[1735812223111,0.24905093,96887.0,96886.0,7.079e-05]
[1735812225206,0.24805093,96887.0,96886.0,7.079e-05]
[1735812225454,0.2738759,96887.0,96886.0,7.079e-05]
[1735812225644,0.24805093,96887.0,96886.0,7.079e-05]
[1735812226640,0.25005093,96887.0,96886.0,7.079e-05]
[1735812227682,0.23387182,96887.0,96886.0,7.079e-05]
[1735812229309,0.1298855,96887.0,96886.0,7.079e-05]
[1735812230089,0.1278855,96887.0,96886.0,7.079e-05]
[1735812230366,0.1298855,96887.0,96886.0,7.079e-05]
[1735812230987,0.14406363,96887.0,96886.0,7.079e-05]
[1735812232341,0.01626363,96887.0,96886.0,0.09528935]
[1735812232543,0.01626363,96887.0,96886.0,0.19927567]
[1735812232768,0.01626363,96887.0,96886.0,0.09528935]
[1735812233700,0.01626363,96887.0,96886.0,0.09728935]
[1735812234035,0.01626363,96887.0,96886.0,0.09528935]
[1735812234648,0.01626363,96887.0,96886.0,0.09928935]
[1735812234854,0.01626363,96887.0,96886.0,0.10828935]
[1735812235073,0.14006363,96887.0,96886.0,0.10828935]
[1735812235267,0.09136363,96887.0,96886.0,0.09928935]
[1735812235466,0.09136363,96887.0,96886.0,0.10728935]
[1735812235669,0.09136363,96887.0,96886.0,0.10328935]
[1735812236070,0.09136363,96887.0,96886.0,0.11228935]
[1735812236548,0.09136363,96887.0,96886.0,0.10928935]